[Event "*** Titled Tuesday Blitz"]
[Site "Chess.com"]
[Date "2021.02.16"]
[Round "6"]
[White "sakkikuska"]
[Black "attack2mateU"]
[Result "0-1"]
[WhiteElo "2492"]
[BlackElo "2715"]
[TimeControl "180+1"]
[EndTime "11:07:35 PST"]
[Termination "attack2mateU won by checkmate"]

1. e4 {[%clk 0:02:59.6]} 1... c5 {[%clk 0:02:57]} 2. Nf3 {[%clk 0:03:00]} 2...
d6 {[%clk 0:02:57.1]} 3. d4 {[%clk 0:03:00.3]} 3... cxd4 {[%clk 0:02:58]} 4.
Nxd4 {[%clk 0:03:01.2]} 4... Nf6 {[%clk 0:02:58.6]} 5. Nc3 {[%clk 0:02:59.8]}
5... a6 {[%clk 0:02:59.3]} 6. Bg5 {[%clk 0:03:00]} 6... e6 {[%clk 0:02:56.2]} 7.
f4 {[%clk 0:02:59.8]} 7... Be7 {[%clk 0:02:56.1]} 8. Qf3 {[%clk 0:02:59.3]} 8...
Qc7 {[%clk 0:02:55.6]} 9. O-O-O {[%clk 0:02:59]} 9... Nbd7 {[%clk 0:02:55.1]}
10. g4 {[%clk 0:02:58.8]} 10... h6 {[%clk 0:02:52]} 11. Bxf6 {[%clk 0:02:56.9]}
11... Bxf6 {[%clk 0:02:51.9]} 12. Kb1 {[%clk 0:02:56.3]} 12... Nb6 {[%clk
0:02:50.7]} 13. h4 {[%clk 0:02:53.7]} 13... Bd7 {[%clk 0:02:42.1]} 14. g5 {[%clk
0:02:51.1]} 14... Bxd4 {[%clk 0:02:41.8]} 15. Rxd4 {[%clk 0:02:49.8]} 15... Qc5
{[%clk 0:02:41.5]} 16. Rd1 {[%clk 0:02:46.6]} 16... O-O-O {[%clk 0:02:31.4]} 17.
Qd3 {[%clk 0:02:23.7]} 17... Bc6 {[%clk 0:01:51.2]} 18. Bh3 {[%clk 0:02:09.5]}
18... hxg5 {[%clk 0:01:48.8]} 19. hxg5 {[%clk 0:02:08.6]} 19... Kb8 {[%clk
0:01:38.4]} 20. g6 {[%clk 0:02:00.1]} 20... f5 {[%clk 0:01:32.5]} 21. Rhe1
{[%clk 0:01:52.5]} 21... fxe4 {[%clk 0:00:27.2]} 22. Nxe4 {[%clk 0:01:49.1]}
22... Bxe4 {[%clk 0:00:24]} 23. Rxe4 {[%clk 0:01:48.5]} 23... d5 {[%clk
0:00:18.7]} 24. Rxe6 {[%clk 0:01:37.5]} 24... Nc4 {[%clk 0:00:18.9]} 25. Bg2
{[%clk 0:01:22.8]} 25... Rh2 {[%clk 0:00:13.6]} 26. Bxd5 {[%clk 0:01:09.5]}
26... Rxd5 {[%clk 0:00:13.5]} 27. Qf1 {[%clk 0:00:50.5]} 27... Nd2+ {[%clk
0:00:13]} 28. Rxd2 {[%clk 0:00:46.3]} 28... Rdxd2 {[%clk 0:00:13.7]} 29. c3
{[%clk 0:00:41.9]} 29... Rxb2+ {[%clk 0:00:13.2]} 30. Ka1 {[%clk 0:00:41.1]}
30... Rxa2+ {[%clk 0:00:13.4]} 31. Kb1 {[%clk 0:00:41]} 31... Rhb2+ {[%clk
0:00:14.3]} 32. Kc1 {[%clk 0:00:40.6]} 32... Qxc3+ {[%clk 0:00:15.2]} 33. Kd1
{[%clk 0:00:39.9]} 33... Ra1# {[%clk 0:00:16.1]} 0-1

[Event "*** Titled Tuesday Blitz"]
[Site "Chess.com"]
[Date "2021.02.16"]
[Round "6"]
[White "vaishali2001"]
[Black "frankshar"]
[Result "1-0"]
[WhiteElo "2588"]
[BlackElo "2383"]
[TimeControl "180+1"]
[EndTime "11:07:43 PST"]
[Termination "vaishali2001 won on time"]

1. d4 {[%clk 0:03:00.9]} 1... Nf6 {[%clk 0:02:59.2]} 2. c4 {[%clk 0:03:00.4]}
2... e6 {[%clk 0:02:59.5]} 3. Nc3 {[%clk 0:03:00.2]} 3... Bb4 {[%clk 0:02:59.7]}
4. e3 {[%clk 0:02:58]} 4... c5 {[%clk 0:02:47.3]} 5. Nf3 {[%clk 0:02:49.7]} 5...
Ne4 {[%clk 0:02:14]} 6. Qc2 {[%clk 0:02:31.6]} 6... cxd4 {[%clk 0:01:59]} 7.
exd4 {[%clk 0:02:05.1]} 7... Nxc3 {[%clk 0:01:58.2]} 8. bxc3 {[%clk 0:02:06]}
8... Be7 {[%clk 0:01:57.9]} 9. Bd3 {[%clk 0:02:05.4]} 9... h6 {[%clk 0:01:54.5]}
10. O-O {[%clk 0:01:57.1]} 10... O-O {[%clk 0:01:53.2]} 11. Bf4 {[%clk
0:01:55.4]} 11... d6 {[%clk 0:01:50.4]} 12. Qd2 {[%clk 0:01:49.1]} 12... Qe8
{[%clk 0:01:22.5]} 13. Rfe1 {[%clk 0:01:35.3]} 13... Nd7 {[%clk 0:01:20.2]} 14.
Bxh6 {[%clk 0:01:26.4]} 14... b6 {[%clk 0:01:00.1]} 15. Re4 {[%clk 0:01:07]}
15... f5 {[%clk 0:00:38.7]} 16. Rxe6 {[%clk 0:00:59.1]} 16... Ne5 {[%clk
0:00:21.3]} 17. Bxg7 {[%clk 0:00:24.5]} 17... Nxf3+ {[%clk 0:00:19.5]} 18. gxf3
{[%clk 0:00:24.8]} 18... Bxe6 {[%clk 0:00:17.7]} 19. Qh6 {[%clk 0:00:25]} 19...
Bf6 {[%clk 0:00:08.2]} 20. Bxf6 {[%clk 0:00:19]} 20... Qd7 {[%clk 0:00:07.9]}
21. Re1 {[%clk 0:00:16.2]} 21... d5 {[%clk 0:00:02.5]} 22. Qg6+ {[%clk
0:00:16.4]} 1-0

[Event "*** Titled Tuesday Blitz"]
[Site "Chess.com"]
[Date "2021.02.16"]
[Round "6"]
[White "Pelopidass"]
[Black "1random"]
[Result "1-0"]
[WhiteElo "2593"]
[BlackElo "2391"]
[TimeControl "180+1"]
[EndTime "11:07:45 PST"]
[Termination "Pelopidass won by resignation"]

1. e4 {[%clk 0:03:00.9]} 1... f5 {[%clk 0:02:55.7]} 2. exf5 {[%clk 0:02:59.1]}
2... Nf6 {[%clk 0:02:55.5]} 3. d4 {[%clk 0:02:57.7]} 3... d5 {[%clk 0:02:55.8]}
4. Bd3 {[%clk 0:02:57.7]} 4... c5 {[%clk 0:02:56.1]} 5. dxc5 {[%clk 0:02:53.4]}
5... e6 {[%clk 0:02:56.5]} 6. fxe6 {[%clk 0:02:50.7]} 6... Bxc5 {[%clk
0:02:56.7]} 7. Nf3 {[%clk 0:02:41.2]} 7... O-O {[%clk 0:02:56.5]} 8. Bg5 {[%clk
0:02:27.8]} 8... Bxe6 {[%clk 0:02:26.8]} 9. O-O {[%clk 0:02:26.1]} 9... Nc6
{[%clk 0:02:18.6]} 10. Nbd2 {[%clk 0:02:20.8]} 10... Qd7 {[%clk 0:02:15.5]} 11.
c3 {[%clk 0:01:56.4]} 11... h6 {[%clk 0:02:12.9]} 12. Bh4 {[%clk 0:01:54.8]}
12... Bg4 {[%clk 0:02:10.4]} 13. Qc2 {[%clk 0:01:54.7]} 13... Rac8 {[%clk
0:02:06.3]} 14. Rae1 {[%clk 0:01:39.4]} 14... Bb6 {[%clk 0:01:42.3]} 15. Ne5
{[%clk 0:01:27.4]} 15... Nxe5 {[%clk 0:01:13]} 16. Rxe5 {[%clk 0:01:28.3]} 16...
Bc7 {[%clk 0:00:52.2]} 17. Re3 {[%clk 0:01:23]} 17... d4 {[%clk 0:00:43.9]} 18.
Ree1 {[%clk 0:00:57.1]} 18... dxc3 {[%clk 0:00:41.5]} 19. bxc3 {[%clk 0:00:58]}
19... Kh8 {[%clk 0:00:31.7]} 20. Nc4 {[%clk 0:00:51.3]} 20... Rfd8 {[%clk
0:00:21.5]} 21. Be2 {[%clk 0:00:36.2]} 21... Bxe2 {[%clk 0:00:14]} 22. Qxe2
{[%clk 0:00:37.1]} 22... Bxh2+ {[%clk 0:00:11.7]} 23. Kxh2 {[%clk 0:00:35.6]}
23... Qc7+ {[%clk 0:00:10]} 24. Ne5 {[%clk 0:00:35.2]} 24... Rd5 {[%clk
0:00:02.9]} 25. Bg3 {[%clk 0:00:29.7]} 25... Rf8 {[%clk 0:00:01.3]} 26. Ng6+
{[%clk 0:00:28.9]} 1-0

[Event "*** Titled Tuesday Blitz"]
[Site "Chess.com"]
[Date "2021.02.16"]
[Round "6"]
[White "ErikRonka"]
[Black "Fortitudine"]
[Result "1-0"]
[WhiteElo "2486"]
[BlackElo "2330"]
[TimeControl "180+1"]
[EndTime "11:07:45 PST"]
[Termination "ErikRonka won by checkmate"]

1. e4 {[%clk 0:03:00.9]} 1... c5 {[%clk 0:02:59.5]} 2. Nf3 {[%clk 0:03:00.5]}
2... d6 {[%clk 0:02:59.9]} 3. d4 {[%clk 0:03:00.1]} 3... cxd4 {[%clk 0:02:59.7]}
4. Nxd4 {[%clk 0:03:01]} 4... Nf6 {[%clk 0:02:59.9]} 5. Nc3 {[%clk 0:03:01.5]}
5... Nc6 {[%clk 0:03:00.1]} 6. Bg5 {[%clk 0:03:01.3]} 6... Bd7 {[%clk 0:03:00]}
7. Qd2 {[%clk 0:03:01.5]} 7... Rc8 {[%clk 0:02:59.7]} 8. f4 {[%clk 0:03:01.4]}
8... Nxd4 {[%clk 0:02:51.7]} 9. Qxd4 {[%clk 0:03:02.3]} 9... Qa5 {[%clk
0:02:50.6]} 10. e5 {[%clk 0:03:02.7]} 10... dxe5 {[%clk 0:02:37.5]} 11. fxe5
{[%clk 0:03:03.6]} 11... e6 {[%clk 0:02:34.3]} 12. O-O-O {[%clk 0:02:40.9]}
12... Bc6 {[%clk 0:02:17.5]} 13. Nb5 {[%clk 0:02:30.3]} 13... Nd5 {[%clk
0:01:46.4]} 14. Qxa7 {[%clk 0:01:09.1]} 14... Qb4 {[%clk 0:00:47.5]} 15. Qd4
{[%clk 0:01:00.1]} 15... Qa5 {[%clk 0:00:23]} 16. Nd6+ {[%clk 0:00:59.3]} 16...
Bxd6 {[%clk 0:00:21.2]} 17. exd6 {[%clk 0:01:00.2]} 17... Qxa2 {[%clk
0:00:16.6]} 18. Qxg7 {[%clk 0:00:53.8]} 18... Qa1+ {[%clk 0:00:10.9]} 19. Kd2
{[%clk 0:00:53.8]} 19... Qa5+ {[%clk 0:00:11.8]} 20. c3 {[%clk 0:00:51.6]} 20...
Kd7 {[%clk 0:00:08.9]} 21. Qxf7+ {[%clk 0:00:49.7]} 21... Kxd6 {[%clk
0:00:09.5]} 22. Ke1 {[%clk 0:00:24.7]} 22... Rc7 {[%clk 0:00:05.6]} 23. Bf4+
{[%clk 0:00:22.6]} 23... Kc5 {[%clk 0:00:06]} 24. Bxc7 {[%clk 0:00:22.5]} 24...
Nxc7 {[%clk 0:00:03.4]} 25. Qf2# {[%clk 0:00:21]} 1-0

[Event "*** Titled Tuesday Blitz"]
[Site "Chess.com"]
[Date "2021.02.16"]
[Round "6"]
[White "SanchezKelvin"]
[Black "sorch29"]
[Result "1-0"]
[WhiteElo "2403"]
[BlackElo "2159"]
[TimeControl "180+1"]
[EndTime "11:07:45 PST"]
[Termination "SanchezKelvin won by resignation"]

1. d4 {[%clk 0:03:00.9]} 1... Nf6 {[%clk 0:02:58.5]} 2. c4 {[%clk 0:03:00.6]}
2... g6 {[%clk 0:02:53]} 3. Nc3 {[%clk 0:03:00]} 3... Bg7 {[%clk 0:02:52.8]} 4.
Nf3 {[%clk 0:02:59.1]} 4... d6 {[%clk 0:02:53.4]} 5. e4 {[%clk 0:02:56.8]} 5...
O-O {[%clk 0:02:54.3]} 6. Be2 {[%clk 0:02:45]} 6... e5 {[%clk 0:02:51.7]} 7. O-O
{[%clk 0:02:44.2]} 7... exd4 {[%clk 0:02:48]} 8. Nxd4 {[%clk 0:02:43.6]} 8...
Re8 {[%clk 0:02:47.6]} 9. f3 {[%clk 0:02:43.8]} 9... Nc6 {[%clk 0:02:47]} 10.
Be3 {[%clk 0:02:42.6]} 10... Nh5 {[%clk 0:02:44.4]} 11. Nc2 {[%clk 0:02:35.4]}
11... f5 {[%clk 0:02:23.6]} 12. Qd2 {[%clk 0:02:22.9]} 12... Nf6 {[%clk
0:02:12.5]} 13. exf5 {[%clk 0:02:20]} 13... Bxf5 {[%clk 0:02:12.3]} 14. Bf2
{[%clk 0:02:18.3]} 14... Qe7 {[%clk 0:01:54.3]} 15. Ne3 {[%clk 0:02:12.2]} 15...
Bh6 {[%clk 0:01:14.2]} 16. Nxf5 {[%clk 0:02:10.6]} 16... Bxd2 {[%clk 0:01:13.4]}
17. Nxe7+ {[%clk 0:02:04.1]} 17... Rxe7 {[%clk 0:01:13.5]} 18. Bd3 {[%clk
0:01:33.3]} 18... Bxc3 {[%clk 0:00:58.3]} 19. bxc3 {[%clk 0:01:24]} 19... Ne5
{[%clk 0:00:59.2]} 20. Be2 {[%clk 0:01:19.7]} 20... Neg4 {[%clk 0:00:49.8]} 21.
fxg4 {[%clk 0:00:57.2]} 21... Rxe2 {[%clk 0:00:48.1]} 22. h3 {[%clk 0:00:52.7]}
22... Ne4 {[%clk 0:00:40.2]} 23. Rfe1 {[%clk 0:00:38.6]} 23... Nxc3 {[%clk
0:00:19.9]} 24. Bd4 {[%clk 0:00:31.5]} 24... Rae8 {[%clk 0:00:18.7]} 25. Bxc3
{[%clk 0:00:30.9]} 25... Rxe1+ {[%clk 0:00:18.3]} 26. Rxe1 {[%clk 0:00:30.4]}
26... Rxe1+ {[%clk 0:00:18.5]} 27. Bxe1 {[%clk 0:00:30.2]} 27... Kf7 {[%clk
0:00:19.3]} 28. Kf2 {[%clk 0:00:29]} 28... Ke6 {[%clk 0:00:19.5]} 29. Ke3 {[%clk
0:00:27.5]} 29... d5 {[%clk 0:00:19.9]} 30. Kd4 {[%clk 0:00:26.3]} 30... b6
{[%clk 0:00:19.4]} 31. cxd5+ {[%clk 0:00:25.9]} 1-0

[Event "*** Titled Tuesday Blitz"]
[Site "Chess.com"]
[Date "2021.02.16"]
[Round "6"]
[White "albi1999"]
[Black "Alex-11211"]
[Result "1-0"]
[WhiteElo "2600"]
[BlackElo "2413"]
[TimeControl "180+1"]
[EndTime "11:07:46 PST"]
[Termination "albi1999 won on time"]

1. d4 {[%clk 0:02:54.3]} 1... Nf6 {[%clk 0:02:57.8]} 2. c4 {[%clk 0:02:49.1]}
2... c5 {[%clk 0:02:54]} 3. d5 {[%clk 0:02:46.8]} 3... g6 {[%clk 0:02:54.3]} 4.
Nc3 {[%clk 0:02:44.9]} 4... Bg7 {[%clk 0:02:54.8]} 5. e4 {[%clk 0:02:44.2]} 5...
O-O {[%clk 0:02:55.7]} 6. Nge2 {[%clk 0:02:42]} 6... d6 {[%clk 0:02:55.9]} 7.
Ng3 {[%clk 0:02:40.5]} 7... e6 {[%clk 0:02:55.7]} 8. Be2 {[%clk 0:02:40.1]} 8...
exd5 {[%clk 0:02:47]} 9. cxd5 {[%clk 0:02:41]} 9... a6 {[%clk 0:02:43.5]} 10. a4
{[%clk 0:02:38.2]} 10... Nbd7 {[%clk 0:02:35.6]} 11. O-O {[%clk 0:02:33.1]}
11... Re8 {[%clk 0:02:31]} 12. Bg5 {[%clk 0:02:29.8]} 12... h6 {[%clk
0:02:29.6]} 13. Be3 {[%clk 0:02:30]} 13... Rb8 {[%clk 0:02:15.6]} 14. Qd2 {[%clk
0:02:28.4]} 14... Kh7 {[%clk 0:02:15.4]} 15. f4 {[%clk 0:02:24.8]} 15... b5
{[%clk 0:01:54.8]} 16. axb5 {[%clk 0:02:23.3]} 16... axb5 {[%clk 0:01:55.7]} 17.
e5 {[%clk 0:01:59.4]} 17... b4 {[%clk 0:01:31.3]} 18. Nce4 {[%clk 0:01:48.7]}
18... Nxe4 {[%clk 0:01:25.7]} 19. Nxe4 {[%clk 0:01:49.6]} 19... dxe5 {[%clk
0:01:24.7]} 20. f5 {[%clk 0:01:49.5]} 20... Qh4 {[%clk 0:01:05.3]} 21. Nd6
{[%clk 0:01:42.3]} 21... Nf6 {[%clk 0:00:44.7]} 22. Nxe8 {[%clk 0:01:40]} 22...
Nxe8 {[%clk 0:00:45.6]} 23. fxg6+ {[%clk 0:01:39]} 23... fxg6 {[%clk 0:00:46.5]}
24. Bxc5 {[%clk 0:01:33.8]} 24... Bf5 {[%clk 0:00:38.4]} 25. Ra7 {[%clk
0:01:28.2]} 25... Kh8 {[%clk 0:00:25]} 26. d6 {[%clk 0:01:23.4]} 26... Nf6
{[%clk 0:00:21.6]} 27. Bf2 {[%clk 0:01:12.6]} 27... Qf4 {[%clk 0:00:13.3]} 28.
Qxf4 {[%clk 0:01:11.1]} 28... exf4 {[%clk 0:00:14.2]} 29. Bd4 {[%clk 0:01:11.3]}
29... g5 {[%clk 0:00:13.5]} 30. g3 {[%clk 0:01:05.2]} 30... Bh3 {[%clk
0:00:11.2]} 31. Rc1 {[%clk 0:00:59.8]} 31... fxg3 {[%clk 0:00:09.6]} 32. hxg3
{[%clk 0:00:59.2]} 32... Ne8 {[%clk 0:00:07.1]} 33. Rxg7 {[%clk 0:00:53.8]}
33... Nxg7 {[%clk 0:00:07.6]} 34. Rc7 {[%clk 0:00:54.2]} 34... Rg8 {[%clk
0:00:06]} 35. Bc4 {[%clk 0:00:50.4]} 1-0

[Event "*** Titled Tuesday Blitz"]
[Site "Chess.com"]
[Date "2021.02.16"]
[Round "6"]
[White "Natalya_Buksa"]
[Black "ChampStan"]
[Result "0-1"]
[WhiteElo "2526"]
[BlackElo "2283"]
[TimeControl "180+1"]
[EndTime "11:07:48 PST"]
[Termination "ChampStan won on time"]

1. d4 {[%clk 0:03:00.9]} 1... Nf6 {[%clk 0:02:59.9]} 2. Nc3 {[%clk 0:03:01.1]}
2... d5 {[%clk 0:02:59.5]} 3. Bf4 {[%clk 0:03:01.3]} 3... g6 {[%clk 0:02:58.2]}
4. e3 {[%clk 0:03:00.9]} 4... Bg7 {[%clk 0:02:58]} 5. h4 {[%clk 0:03:01.4]} 5...
c5 {[%clk 0:02:53.4]} 6. dxc5 {[%clk 0:02:51.8]} 6... Qa5 {[%clk 0:02:49.5]} 7.
Be5 {[%clk 0:02:38.3]} 7... Nc6 {[%clk 0:02:39.2]} 8. Bb5 {[%clk 0:02:37.3]}
8... Qb4 {[%clk 0:02:32.9]} 9. Ne2 {[%clk 0:02:13.6]} 9... Qxc5 {[%clk
0:02:10.2]} 10. h5 {[%clk 0:01:57.1]} 10... O-O {[%clk 0:01:53.6]} 11. hxg6
{[%clk 0:01:54.7]} 11... Nxe5 {[%clk 0:01:51.3]} 12. gxh7+ {[%clk 0:01:48.8]}
12... Kh8 {[%clk 0:01:50]} 13. Nd4 {[%clk 0:01:33.4]} 13... Ne4 {[%clk
0:01:20.4]} 14. Nce2 {[%clk 0:00:52.3]} 14... Ng4 {[%clk 0:01:01.6]} 15. O-O
{[%clk 0:00:41.4]} 15... e5 {[%clk 0:00:55.4]} 16. b4 {[%clk 0:00:32.8]} 16...
Qb6 {[%clk 0:00:51.1]} 17. Nb3 {[%clk 0:00:15.6]} 17... Qxb5 {[%clk 0:00:49.7]}
18. a4 {[%clk 0:00:16.1]} 18... Qc6 {[%clk 0:00:47.4]} 19. f3 {[%clk 0:00:13.4]}
19... Nxe3 {[%clk 0:00:46.8]} 20. Qd3 {[%clk 0:00:13.9]} 20... Nxf1 {[%clk
0:00:44.3]} 21. fxe4 {[%clk 0:00:14.4]} 21... dxe4 {[%clk 0:00:40.5]} 22. Qd1
{[%clk 0:00:01.8]} 22... Ne3 {[%clk 0:00:40.2]} 23. Qd2 {[%clk 0:00:02.3]} 23...
Nf5 {[%clk 0:00:37.7]} 24. Rf1 {[%clk 0:00:01.4]} 24... Qg6 {[%clk 0:00:33.8]}
25. c4 {[%clk 0:00:01]} 25... Nh4 {[%clk 0:00:33.5]} 26. Nc3 {[%clk 0:00:01]}
26... Bh3 {[%clk 0:00:29]} 0-1

[Event "*** Titled Tuesday Blitz"]
[Site "Chess.com"]
[Date "2021.02.16"]
[Round "6"]
[White "Taktikmonster"]
[Black "IMAghasiyevKamal"]
[Result "0-1"]
[WhiteElo "2352"]
[BlackElo "2529"]
[TimeControl "180+1"]
[EndTime "11:07:50 PST"]
[Termination "IMAghasiyevKamal won on time"]

1. e4 {[%clk 0:03:00.9]} 1... e5 {[%clk 0:02:59.1]} 2. Nf3 {[%clk 0:03:00.8]}
2... Nc6 {[%clk 0:02:58.8]} 3. Bc4 {[%clk 0:03:01.4]} 3... Bc5 {[%clk
0:02:58.1]} 4. d4 {[%clk 0:03:00.5]} 4... Nxd4 {[%clk 0:02:53.9]} 5. Be3 {[%clk
0:02:41.3]} 5... d6 {[%clk 0:02:47.4]} 6. Nxd4 {[%clk 0:02:32.7]} 6... exd4
{[%clk 0:02:44.4]} 7. Bxd4 {[%clk 0:02:33.6]} 7... Bxd4 {[%clk 0:02:43.1]} 8.
Qxd4 {[%clk 0:02:34.5]} 8... Qf6 {[%clk 0:02:41.9]} 9. Qxf6 {[%clk 0:02:32.8]}
9... Nxf6 {[%clk 0:02:41.2]} 10. Nc3 {[%clk 0:02:33.2]} 10... Be6 {[%clk
0:02:33.4]} 11. Bxe6 {[%clk 0:02:22.2]} 11... fxe6 {[%clk 0:02:33]} 12. O-O-O
{[%clk 0:02:22.6]} 12... Ng4 {[%clk 0:02:31.6]} 13. Rdf1 {[%clk 0:02:10.9]}
13... Ke7 {[%clk 0:02:20.8]} 14. h3 {[%clk 0:02:08.6]} 14... Ne5 {[%clk
0:02:18.8]} 15. f4 {[%clk 0:02:07.8]} 15... Nc4 {[%clk 0:02:18.5]} 16. b3 {[%clk
0:01:55.1]} 16... Nb6 {[%clk 0:02:18.4]} 17. g4 {[%clk 0:01:40.3]} 17... h5
{[%clk 0:02:13.9]} 18. Rhg1 {[%clk 0:01:35.4]} 18... hxg4 {[%clk 0:02:13]} 19.
Rxg4 {[%clk 0:01:36.3]} 19... Kf7 {[%clk 0:02:09.5]} 20. f5 {[%clk 0:01:28.4]}
20... e5 {[%clk 0:02:04.6]} 21. Nb5 {[%clk 0:01:11.6]} 21... Rac8 {[%clk
0:01:53.6]} 22. Nxa7 {[%clk 0:01:11.1]} 22... Ra8 {[%clk 0:01:53.4]} 23. Nb5
{[%clk 0:01:11.6]} 23... Rxa2 {[%clk 0:01:53.5]} 24. Kd2 {[%clk 0:00:59]} 24...
Rxh3 {[%clk 0:01:45.5]} 25. Rfg1 {[%clk 0:00:40]} 25... Rh7 {[%clk 0:01:13.9]}
26. Nxc7 {[%clk 0:00:37.8]} 26... Nd7 {[%clk 0:01:12.8]} 27. Ne6 {[%clk
0:00:34.3]} 27... Nf6 {[%clk 0:00:58.6]} 28. Rxg7+ {[%clk 0:00:34.3]} 28... Rxg7
{[%clk 0:00:58.9]} 29. Rxg7+ {[%clk 0:00:35.1]} 29... Ke8 {[%clk 0:00:59.6]} 30.
Kd3 {[%clk 0:00:29.7]} 30... Ra1 {[%clk 0:00:54.7]} 31. Rxb7 {[%clk 0:00:19.1]}
31... Rd1+ {[%clk 0:00:53.3]} 32. Ke2 {[%clk 0:00:18.5]} 32... Rc1 {[%clk
0:00:51.6]} 33. Kd2 {[%clk 0:00:18.8]} 33... Rh1 {[%clk 0:00:49.8]} 34. Ng5
{[%clk 0:00:09.4]} 34... Rg1 {[%clk 0:00:47.9]} 35. Rg7 {[%clk 0:00:08.4]} 35...
Rxg5 {[%clk 0:00:47.6]} 36. Rb7 {[%clk 0:00:03]} 36... Nxe4+ {[%clk 0:00:46.4]}
37. Kd3 {[%clk 0:00:02.8]} 37... Nc5+ {[%clk 0:00:46.5]} 0-1

[Event "*** Titled Tuesday Blitz"]
[Site "Chess.com"]
[Date "2021.02.16"]
[Round "6"]
[White "Beca95"]
[Black "GoltsevDmitry2000"]
[Result "1-0"]
[WhiteElo "2905"]
[BlackElo "2635"]
[TimeControl "180+1"]
[EndTime "11:07:51 PST"]
[Termination "Beca95 won by resignation"]

1. d4 {[%clk 0:03:00.9]} 1... Nf6 {[%clk 0:02:59.8]} 2. c4 {[%clk 0:03:01.3]}
2... e6 {[%clk 0:02:59.9]} 3. Nf3 {[%clk 0:03:01.8]} 3... Bb4+ {[%clk
0:02:59.9]} 4. Nbd2 {[%clk 0:03:01.7]} 4... Qe7 {[%clk 0:02:58.7]} 5. a3 {[%clk
0:02:58.3]} 5... Bxd2+ {[%clk 0:02:55.5]} 6. Qxd2 {[%clk 0:02:59.2]} 6... b6
{[%clk 0:02:50.7]} 7. b4 {[%clk 0:02:58.5]} 7... Bb7 {[%clk 0:02:45.6]} 8. Bb2
{[%clk 0:02:58.8]} 8... a5 {[%clk 0:02:45.9]} 9. b5 {[%clk 0:02:58.5]} 9... d6
{[%clk 0:02:43.2]} 10. e3 {[%clk 0:02:58.1]} 10... Ne4 {[%clk 0:02:42.4]} 11.
Qc2 {[%clk 0:02:58]} 11... Nd7 {[%clk 0:02:42]} 12. Nd2 {[%clk 0:02:56.3]} 12...
f5 {[%clk 0:02:32.2]} 13. a4 {[%clk 0:02:31.9]} 13... Ndf6 {[%clk 0:02:30.5]}
14. f3 {[%clk 0:02:29.8]} 14... Ng5 {[%clk 0:01:56]} 15. O-O-O {[%clk
0:02:27.6]} 15... Nf7 {[%clk 0:01:54.5]} 16. c5 {[%clk 0:02:24]} 16... dxc5
{[%clk 0:01:53.8]} 17. dxc5 {[%clk 0:02:24.9]} 17... Qxc5 {[%clk 0:01:48.9]} 18.
Qxc5 {[%clk 0:02:24.1]} 18... bxc5 {[%clk 0:01:49.8]} 19. Nc4 {[%clk 0:02:22.1]}
19... O-O {[%clk 0:01:32.8]} 20. Be2 {[%clk 0:02:07.7]} 20... Nd5 {[%clk
0:01:27.1]} 21. Rd2 {[%clk 0:02:05.3]} 21... Nd6 {[%clk 0:01:23.8]} 22. Re1
{[%clk 0:01:50.5]} 22... Rfd8 {[%clk 0:01:19.3]} 23. Be5 {[%clk 0:01:49.3]}
23... Nf7 {[%clk 0:01:07.8]} 24. Bg3 {[%clk 0:01:48.5]} 24... c6 {[%clk
0:01:00]} 25. e4 {[%clk 0:01:40.9]} 25... fxe4 {[%clk 0:00:57.7]} 26. fxe4
{[%clk 0:01:40.5]} 26... Nc3 {[%clk 0:00:58.2]} 27. Rxd8+ {[%clk 0:01:34.2]}
27... Rxd8 {[%clk 0:00:59.1]} 28. Nxa5 {[%clk 0:01:33.9]} 28... Ba8 {[%clk
0:00:52.6]} 29. Nxc6 {[%clk 0:01:33.4]} 29... Bxc6 {[%clk 0:00:49.5]} 30. bxc6
{[%clk 0:01:34.3]} 30... Nxe2+ {[%clk 0:00:48.1]} 31. Rxe2 {[%clk 0:01:35.2]}
31... Rc8 {[%clk 0:00:48.9]} 32. c7 {[%clk 0:01:25]} 32... Kf8 {[%clk
0:00:41.8]} 33. Rc2 {[%clk 0:01:24.5]} 33... Ng5 {[%clk 0:00:38.9]} 34. Bd6+
{[%clk 0:01:13.5]} 34... Ke8 {[%clk 0:00:38.7]} 35. e5 {[%clk 0:01:13.4]} 35...
Ne4 {[%clk 0:00:37.7]} 36. Rc4 {[%clk 0:01:04.7]} 36... Nxd6 {[%clk 0:00:25.7]}
37. exd6 {[%clk 0:01:05.6]} 37... Kd7 {[%clk 0:00:25.8]} 38. Rxc5 {[%clk
0:01:05.9]} 38... Kxd6 {[%clk 0:00:26.7]} 39. Rc2 {[%clk 0:01:05.3]} 39... g5
{[%clk 0:00:08.6]} 40. Kd2 {[%clk 0:01:05.3]} 40... h5 {[%clk 0:00:09.1]} 41.
Ke3 {[%clk 0:01:05.5]} 41... g4 {[%clk 0:00:07.3]} 42. g3 {[%clk 0:01:05.8]}
42... e5 {[%clk 0:00:04.6]} 43. Ke4 {[%clk 0:01:05.7]} 1-0

[Event "*** Titled Tuesday Blitz"]
[Site "Chess.com"]
[Date "2021.02.16"]
[Round "6"]
[White "XDPS"]
[Black "hypert"]
[Result "1-0"]
[WhiteElo "2736"]
[BlackElo "2508"]
[TimeControl "180+1"]
[EndTime "11:07:51 PST"]
[Termination "XDPS won by checkmate"]

1. e4 {[%clk 0:03:00.9]} 1... c5 {[%clk 0:02:59.4]} 2. Nf3 {[%clk 0:03:00.6]}
2... e6 {[%clk 0:02:59.9]} 3. d4 {[%clk 0:02:59]} 3... cxd4 {[%clk 0:03:00.8]}
4. Nxd4 {[%clk 0:02:59.7]} 4... Nc6 {[%clk 0:03:01.4]} 5. Nc3 {[%clk 0:02:59.3]}
5... Qc7 {[%clk 0:03:01.9]} 6. Qd3 {[%clk 0:02:59.6]} 6... a6 {[%clk 0:02:58.3]}
7. Nxc6 {[%clk 0:02:59.7]} 7... Qxc6 {[%clk 0:02:58.2]} 8. Bg5 {[%clk
0:02:58.5]} 8... b5 {[%clk 0:02:56.8]} 9. O-O-O {[%clk 0:02:58]} 9... Bb7 {[%clk
0:02:55]} 10. f4 {[%clk 0:02:55.2]} 10... Bc5 {[%clk 0:02:54.5]} 11. Be2 {[%clk
0:02:52.4]} 11... Ne7 {[%clk 0:02:54.3]} 12. Bf3 {[%clk 0:02:52.2]} 12... b4
{[%clk 0:02:51.2]} 13. Nd5 {[%clk 0:02:51]} 13... Rc8 {[%clk 0:02:38.6]} 14.
Rhe1 {[%clk 0:02:18.5]} 14... Nxd5 {[%clk 0:02:15.2]} 15. exd5 {[%clk
0:02:18.4]} 15... Qc7 {[%clk 0:02:15.6]} 16. d6 {[%clk 0:00:48.3]} 16... Qb6
{[%clk 0:02:14.3]} 17. Bxb7 {[%clk 0:00:47.8]} 17... Qxb7 {[%clk 0:02:15.2]} 18.
Be7 {[%clk 0:00:48]} 18... a5 {[%clk 0:01:59.9]} 19. f5 {[%clk 0:00:46.9]} 19...
Rc6 {[%clk 0:01:13.2]} 20. Qg3 {[%clk 0:00:44.1]} 20... Rg8 {[%clk 0:00:58.9]}
21. Qh3 {[%clk 0:00:32.8]} 21... Rh8 {[%clk 0:00:46.1]} 22. Qg4 {[%clk
0:00:30.8]} 22... g6 {[%clk 0:00:40.8]} 23. fxe6 {[%clk 0:00:26.2]} 23... fxe6
{[%clk 0:00:40.1]} 24. Rf1 {[%clk 0:00:19.1]} 24... Be3+ {[%clk 0:00:20.5]} 25.
Kb1 {[%clk 0:00:19]} 25... Rc5 {[%clk 0:00:20.2]} 26. Rde1 {[%clk 0:00:11.2]}
26... Bh6 {[%clk 0:00:19.4]} 27. Rxe6 {[%clk 0:00:07.6]} 27... dxe6 {[%clk
0:00:16.7]} 28. Qxe6 {[%clk 0:00:08.5]} 28... Qd7 {[%clk 0:00:16.1]} 29. Qf7#
{[%clk 0:00:08.8]} 1-0